bitfinex-derivatives/quotes_ETHF0:USTF0_20240907
["timestamp","ask_amount","ask_price","bid_price","bid_amount"]
[1725688231965,0.44219,2262.1,2261.7,4.0384969]
[1725688232160,0.44219,2262.1,2261.9,0.4422]
[1725688233058,0.44216,2262.2,2262.0,0.44218]
[1725688233263,0.44216,2262.2,2262.1,1.1386]
[1725688233665,4.86296,2262.2,2262.1,1.1386]
[1725688234568,0.44214,2262.3,2262.1,1.58076]
[1725688234766,0.44215,2262.2,2262.1,1.1386]
[1725688236966,0.44215,2262.2,2262.1,0.3858]
[1725688237167,0.81075,2262.2,2262.1,0.3858]
[1725688237363,1.91614,2262.2,2262.1,0.3858]
[1725688237568,0.44219,2262.0,2261.9,0.7599]
[1725688239168,0.44219,2262.0,2261.8,1.96387876]
[1725688239169,0.44221,2261.9,2261.8,1.52165876]
[1725688239474,0.44221,2261.9,2261.8,0.3727]
[1725688245478,0.44227,2261.6,2261.5,0.7516]
[1725688245680,2.81795,2261.6,2261.5,0.7516]
[1725688245875,1.54802,2261.5,2261.4,0.3976]
[1725688246180,0.44233,2261.3,2261.2,0.7577]
[1725688246381,1.71233,2261.3,2261.2,1.1553]
[1725688250677,1.71233,2261.3,2261.2,0.3976]
[1725688250872,1.71233,2261.3,2260.9,2.74774876]
[1725688250873,0.44237,2261.1,2260.9,2.74774876]
[1725688251273,0.44237,2261.1,2260.9,1.59879]
[1725688251588,1.71239,2261.0,2260.9,1.1564]
[1725688252086,1.71239,2261.0,2260.9,1.59881]
[1725688252087,1.27,2261.0,2260.9,1.59881]
[1725688252473,0.44238,2261.1,2260.9,1.59881]
[1725688252983,0.44239,2261.0,2260.9,1.1564]
[1725688253389,0.44237,2261.1,2260.9,1.59881]
[1725688253691,1.27,2261.2,2260.9,1.59881]
[1725688253882,1.71236,2261.2,2260.9,1.59881]
[1725688255883,1.71236,2261.2,2261.0,0.44239]
[1725688256084,1.27,2261.2,2260.9,1.1564]
[1725688256384,0.44238,2261.1,2260.9,1.1564]
[1725688256586,1.71238,2261.1,2260.9,1.1564]
[1725688257082,0.44239,2261.0,2260.9,1.1564]
[1725688260595,1.10588,2261.2,2260.9,1.59879]
[1725688260596,1.27,2261.2,2260.9,1.59879]
[1725688260792,0.44238,2261.1,2260.9,1.59879]
[1725688261300,0.44239,2261.0,2260.9,1.1564]
[1725688262586,1.71238,2261.1,2260.9,1.59881]
[1725688262799,0.44239,2261.0,2260.9,1.1564]
[1725688266894,1.71239,2261.0,2260.9,1.1564]
[1725688267801,6.13559,2261.0,2260.9,1.1564]
[1725688268501,1.71239,2261.0,2260.9,1.1564]
[1725688271389,1.1059,2261.2,2260.9,1.1564]
[1725688271596,1.27,2261.1,2260.9,1.1564]
[1725688271794,5.07248,2261.4,2260.9,1.1564]
[1725688271795,0.44235,2261.2,2261.0,0.44239]
[1725688272697,1.27,2261.3,2261.0,0.44239]
[1725688273900,0.44235,2261.2,2261.0,0.44239]
[1725688274495,0.44237,2261.1,2261.0,0.44239]
[1725688274804,0.44237,2261.1,2260.9,1.59879]
[1725688275405,0.44236,2261.2,2261.0,0.44238]
[1725688277899,3.2078,2261.4,2261.0,1.27]
[1725688278201,0.44232,2261.4,2261.2,3.65013]
[1725688278403,0.44231,2261.5,2261.3,1.20843]
[1725688278604,5.15845561,2261.6,2261.4,0.81841]
[1725688278799,1.71228,2261.6,2261.4,0.81841]
[1725688279102,1.71228,2261.6,2261.4,0.8184]
[1725688279300,1.27,2261.6,2261.5,0.44229]
[1725688279503,1.71227,2261.6,2261.4,0.81839]
[1725688283701,1.27,2261.6,2261.4,0.81839]
[1725688283907,1.27,2261.6,2261.4,0.3761]
[1725688283908,0.44229,2261.5,2261.4,0.3761]
[1725688284211,1.71228,2261.6,2261.4,0.81841]
[1725688284508,1.27,2261.6,2261.5,0.44229]
[1725688284703,1.27,2261.8,2261.4,0.3761]
[1725688285003,0.44223,2261.8,2261.4,0.3761]
[1725688285203,4.4778,2261.9,2261.4,1.52505876]
[1725688285204,3.65002,2261.9,2261.4,1.52505876]
[1725688285403,1.27,2261.8,2261.4,1.52505876]
[1725688285602,1.27,2261.8,2261.7,0.44225]
[1725688286210,1.27,2262.0,2261.9,0.44221]
[1725688286712,1.71214,2262.3,2262.1,0.44216]
[1725688286914,1.71214,2262.3,2262.2,0.742]
[1725688287105,1.71214,2262.3,2262.2,1.1219]
[1725688287411,1.71213,2262.3,2262.2,1.1219]
[1725688291105,1.27,2262.3,2262.2,1.1219]
[1725688291312,1.71213,2262.3,2262.2,1.1219]
[1725688293508,0.44218,2262.1,2261.9,0.44221]
[1725688293712,0.44218,2262.1,2261.9,1.23431]
[1725688294208,0.44218,2262.1,2261.9,0.7921]
[1725688294808,0.44219,2262.0,2261.9,0.7921]
[1725688295316,0.44219,2262.0,2261.9,0.3974]
[1725688295509,0.44219,2262.0,2261.9,0.7904]
[1725688298709,1.71218,2262.1,2261.9,0.7904]
[1725688299012,0.44218,2262.1,2261.9,1.23261]
[1725688300318,0.80297,2262.2,2261.9,1.23261]
[1725688300516,0.44217,2262.1,2261.9,1.23261]
[1725688301213,0.80297,2262.2,2262.0,0.44219]
[1725688301417,1.27,2262.3,2261.9,0.7904]
[1725688301717,1.71214,2262.3,2262.1,0.44216]
[1725688303520,1.27,2262.3,2262.2,0.7762]
[1725688305819,1.27,2262.3,2262.2,1.21835]
[1725688306426,1.71213,2262.3,2262.2,0.7762]
[1725688306811,1.27,2262.3,2262.2,0.7762]
[1725688307622,1.27,2262.3,2262.2,1.21835]
[1725688308922,1.71213,2262.3,2262.2,0.7762]
[1725688310625,13.01872036,2262.3,2261.5,1.14895876]
[1725688310831,1.27,2261.8,2261.7,0.83375]
[1725688311023,1.7122,2262.0,2261.7,0.3915]
[1725688311524,1.7122,2262.0,2261.7,0.83375]
[1725688312620,0.44221,2261.9,2261.7,0.83375]
[1725688314825,1.27,2261.8,2261.7,0.3915]
[1725688315223,0.44223,2261.8,2261.7,0.3915]
[1725688321126,3.65,2262.0,2261.7,0.83374]
[1725688321335,3.2078,2262.0,2261.8,0.44222]
[1725688321632,3.2078,2262.0,2261.9,0.44221]
[1725688322026,0.44216,2262.2,2262.0,0.44218]
[1725688322221,0.44216,2262.2,2262.1,1.142]
[1725688326030,0.44217,2262.1,2262.0,1.14895876]
[1725688326233,0.44217,2262.1,2262.0,1.53355876]
[1725688327728,0.44217,2262.1,2262.0,1.97574876]
[1725688328331,0.44217,2262.1,2262.0,4.18786934]
[1725688328828,0.44217,2262.1,2262.0,4.1878819]
[1725688329526,0.44217,2262.1,2262.0,0.82679]
[1725688330123,0.44217,2262.1,2262.0,0.3846]
[1725688330936,0.44217,2262.1,2262.0,0.82679]
[1725688333436,0.44217,2262.1,2262.0,0.3846]
[1725688334028,0.44217,2262.1,2262.0,0.82679]
[1725688334540,0.44217,2262.1,2262.0,0.3846]
[1725688337536,0.44217,2262.1,2262.0,3.36117391]
[1725688337732,3.92305,2262.1,2262.0,1.14895876]
[1725688337942,1.54775,2261.9,2261.8,1.14895876]
[1725688338146,2.81775,2261.9,2261.8,1.14895876]
[1725688339234,2.37554,2261.9,2261.7,1.72343814]
[1725688339545,0.44223,2261.8,2261.7,1.72343814]
[1725688339742,0.44223,2261.8,2261.7,3.93594183]
[1725688340433,0.44223,2261.8,2261.7,3.3721253]
[1725688341141,0.44223,2261.8,2261.7,3.37217908]
[1725688341641,0.44223,2261.8,2261.7,3.3721476]
[1725688342043,0.44223,2261.8,2261.7,1.15962161]
[1725688342248,0.44223,2261.8,2261.7,3.37208707]
[1725688342430,1.54782,2261.8,2261.7,3.37209594]
[1725688342640,0.44225,2261.7,2261.6,1.93422161]
[1725688342942,0.82065,2261.7,2261.6,4.14681186]
[1725688343247,0.82065,2261.7,2261.6,4.14685401]
[1725688343541,0.82065,2261.7,2261.6,1.93422161]
[1725688344541,0.82065,2261.7,2261.6,0.7746]
[1725688345143,1.92628,2261.7,2261.6,0.7746]
[1725688345338,0.44227,2261.6,2261.5,1.15962161]
[1725688345538,1.48403,2261.7,2261.4,1.89062161]
[1725688345741,1.54802,2261.5,2261.4,1.52682161]
[1725688345941,1.54802,2261.5,2261.4,0.3672]
[1725688347637,2.81802,2261.5,2261.4,0.3672]
[1725688349350,0.44229,2261.5,2261.4,0.3672]
[1725688352951,0.44227,2261.6,2261.4,1.52682161]
[1725688354353,0.44227,2261.6,2261.4,3.25025975]
[1725688354547,1.71224,2261.8,2261.6,0.44225]
[1725688354746,0.44224,2261.8,2261.7,0.7538]
[1725688355042,0.44224,2261.8,2261.7,1.1339]
[1725688355546,0.44224,2261.8,2261.7,1.57615]
[1725688357557,0.44224,2261.8,2261.7,1.1339]
[1725688362460,1.71224,2261.8,2261.7,1.1339]
[1725688363053,2.10824,2261.8,2261.7,0.7439]
[1725688364261,0.44224,2261.8,2261.7,0.7439]
[1725688365963,0.44224,2261.8,2261.7,1.18615]
[1725688366363,1.27,2261.9,2261.8,0.44223]
[1725688366561,0.4422,2262.0,2261.8,0.44223]
[1725688366759,0.4422,2262.0,2261.9,0.3753]
[1725688368470,0.4422,2262.0,2261.9,0.81751]
[1725688368767,0.4422,2262.0,2261.9,0.3753]
[1725688369462,1.71219,2262.1,2261.9,0.8175]
[1725688369963,1.71219,2262.1,2262.0,0.3737]
[1725688370766,0.44219,2262.1,2262.0,0.3737]
[1725688371156,0.44219,2262.1,2262.0,0.81589]
[1725688371959,0.44219,2262.1,2262.0,0.3737]
[1725688373363,0.44217,2262.1,2262.0,0.81589]
[1725688375771,0.44217,2262.2,2262.0,0.81589]
[1725688375968,0.44217,2262.2,2262.1,0.3941]
[1725688380467,0.44219,2262.0,2261.9,1.15962161]
[1725688380870,0.44219,2262.0,2261.8,1.60184161]
[1725688381070,1.17979,2262.0,2261.8,1.60184161]
[1725688382370,0.44223,2261.8,2261.7,1.93752161]
[1725688383465,0.44223,2261.8,2261.7,0.7779]
[1725688383667,0.44223,2261.8,2261.6,1.60189161]
[1725688383976,0.3749,2261.7,2261.6,1.60189161]
[1725688384168,0.3749,2261.7,2261.6,3.81436926]
[1725688384476,0.81715,2261.7,2261.6,3.37209926]
[1725688385267,0.44224,2261.8,2261.6,3.81436926]
[1725688385469,0.44224,2261.8,2261.6,1.60189161]
[1725688386071,0.44225,2261.7,2261.6,1.15962161]
[1725688386378,2.81788,2261.7,2261.6,1.15962161]
[1725688386567,0.44227,2261.6,2261.5,1.15962161]
[1725688386870,0.44227,2261.6,2261.5,3.3722923]
[1725688388261,0.80257,2261.6,2261.5,3.3722923]
[1725688389769,0.80257,2261.6,2261.5,1.15962161]
[1725688390971,1.71222,2261.9,2261.7,0.44225]
[1725688391178,0.44222,2261.9,2261.8,0.7782]
[1725688398182,1.71222,2261.9,2261.8,0.7782]
[1725688398372,1.71222,2261.9,2261.8,0.3982]
[1725688398573,2.10822,2261.9,2261.8,0.3982]
[1725688399970,1.71222,2261.9,2261.8,0.3982]
[1725688400177,1.71222,2261.9,2261.8,1.55663767]
[1725688400778,1.71222,2261.9,2261.8,0.3982]
[1725688401385,1.71222,2261.9,2261.8,1.55663767]
[1725688401574,1.71222,2261.9,2261.8,0.3982]
[1725688401978,2.81776,2261.9,2261.8,0.3982]
[1725688402286,1.54782,2261.8,2261.7,1.15843767]
[1725688402480,1.54782,2261.8,2261.7,3.75031847]
[1725688402883,1.54782,2261.8,2261.7,1.53773767]
[1725688403193,1.54782,2261.8,2261.7,3.750254]
[1725688403480,1.54782,2261.8,2261.7,1.53773767]
[1725688404286,1.54782,2261.8,2261.7,3.75023449]
[1725688404890,1.54782,2261.8,2261.7,0.3793]
[1725688406990,1.71223,2261.9,2261.7,0.3793]
[1725688407180,1.71223,2261.9,2261.7,0.82155]
[1725688407484,0.44223,2261.8,2261.7,0.3793]
[1725688408186,1.1054,2262.2,2261.7,11.95933767]
[1725688408384,19.81224,2262.8,2262.1,12.5740356]
[1725688408385,0.26124492,2262.8,2262.1,12.5740356]
[1725688408592,1e-08,2263.1,2262.1,12.5740356]
[1725688408593,1e-08,2263.1,2262.7,4.4778]
[1725688408893,1e-08,2263.1,2263.0,5.38641106]
[1725688409185,1e-08,2263.1,2263.0,17.54226982]
[1725688409393,1e-08,2263.1,2263.0,23.54226982]
[1725688409684,1e-08,2263.1,2263.0,18.590839]
[1725688410090,1e-08,2263.1,2263.0,26.07208892]
[1725688410584,1e-08,2263.1,2263.0,21.07097657]
[1725688411485,1e-08,2263.1,2263.0,15.22207782]
[1725688411789,1e-08,2263.1,2263.0,8.069]
[1725688412888,1e-08,2263.1,2263.0,14.069]
[1725688413384,1e-08,2263.1,2263.0,8.069]
[1725688414389,1e-08,2263.1,2263.0,14.069]
[1725688415889,1e-08,2263.1,2263.0,8.069]
[1725688417990,1e-08,2263.1,2263.0,4.8612]
[1725688418195,1e-08,2263.1,2263.0,8.069]
[1725688419092,1e-08,2263.1,2262.9,0.442]
[1725688420001,1e-08,2263.1,2263.0,0.442]
[1725688420294,1e-08,2263.1,2262.8,1.1328]
[1725688420295,1e-08,2263.1,2262.9,0.44201]
[1725688420500,1e-08,2263.1,2263.0,0.442]
[1725688421291,1e-08,2263.1,2263.0,7.627]
[1725688421494,1e-08,2263.1,2263.0,8.069]
[1725688425000,1e-08,2263.1,2263.0,14.069]
[1725688426991,1e-08,2263.1,2263.0,3.6498]
[1725688427192,0.44198001,2263.1,2262.8,1.57482]
[1725688427408,0.44198001,2263.1,2262.8,1.19842]
[1725688427409,1e-08,2263.1,2262.8,1.19842]
[1725688428200,0.44198001,2263.1,2262.8,1.19842]
[1725688428403,0.83358001,2263.1,2262.8,1.19842]
[1725688428999,0.83358001,2263.1,2262.8,0.44202]
[1725688429895,0.39160001,2263.1,2262.9,0.442]
[1725688431103,7.627,2263.0,2262.1,3.2078]
[1725688431306,7.627,2263.0,2261.6,3.5787]
[1725688431307,0.44217,2262.1,2261.6,3.5787]
[1725688431507,0.44216,2262.2,2261.6,3.5787]
[1725688431903,3.8096,2262.3,2261.6,3.5787]
[1725688432098,3.8096,2262.3,2261.9,3.2078]
[1725688432099,1.19174,2262.3,2261.9,3.2078]
[1725688432502,0.7496,2262.3,2261.9,3.2078]
[1725688432903,0.44219,2262.0,2261.9,3.2078]
[1725688433104,0.44219,2262.0,2261.6,0.3709]
[1725688433105,0.44218,2262.1,2261.6,4.02097]
[1725688435504,0.4422,2262.0,2261.6,4.02097]
[1725688436510,0.7496,2262.3,2261.6,3.5787]
[1725688436705,0.44223,2261.8,2261.6,3.2078]
[1725688438414,0.44225,2261.7,2261.6,3.2078]
[1725688440110,4.31337,2261.9,2261.3,12.33853686]
[1725688440308,0.4423,2261.5,2261.3,12.33853686]
[1725688440503,1.10562,2261.8,2261.3,12.33853686]
[1725688440702,0.44231,2261.4,2261.3,12.33853686]
[1725688441308,0.4423,2261.5,2261.3,12.33853686]
[1725688441616,0.4423,2261.5,2261.3,12.78085686]
[1725688445210,0.44231,2261.4,2261.3,12.33853686]
[1725688446415,0.4423,2261.5,2261.3,12.78086686]
[1725688447015,0.4423,2261.5,2261.3,9.57306686]
[1725688447914,1.10568,2261.6,2261.2,3.65014]
[1725688448114,1.10573,2261.5,2261.1,0.3937]
[1725688448312,0.44235,2261.2,2261.1,0.3937]
[1725688448613,0.44235,2261.2,2261.0,1.17488]
[1725688448614,0.44241,2260.9,2260.8,0.44242]
[1725688448811,1.32859528,2261.3,2260.8,5.61322]
[1725688449112,1.10588,2261.2,2260.8,1.19002]
[1725688449319,0.4424,2261.0,2260.8,1.19002]
[1725688450115,4.1658,2261.4,2260.8,0.7476]
[1725688450316,0.44237,2261.2,2261.0,0.44238]
[1725688450522,3.06,2261.4,2261.1,0.44236]
[1725688450705,0.44235,2261.2,2261.1,0.44236]
[1725688451112,0.44235,2261.2,2261.0,0.44237]
[1725688452016,0.44235,2261.2,2261.1,0.44237]
[1725688452213,3.06,2261.4,2261.0,0.44237]
[1725688452413,0.44236,2261.2,2261.0,0.44237]
[1725688454020,0.44236,2261.2,2261.1,0.44237]
[1725688454719,0.44234,2261.3,2261.1,0.44237]
[1725688455119,0.44235,2261.2,2261.1,0.44237]
[1725688455615,0.44234,2261.3,2261.1,0.44237]
[1725688456009,0.44235,2261.2,2261.0,0.44237]
[1725688456317,0.44234,2261.3,2261.1,0.44236]
[1725688458420,0.44235,2261.2,2261.0,0.44237]
[1725688459022,0.44234,2261.3,2260.8,0.7476]
[1725688459517,0.44234,2261.3,2261.1,0.44235]
[1725688459820,1.10568,2261.6,2261.2,0.44235]
[1725688460020,0.44234,2261.3,2261.1,0.44235]
[1725688460422,0.44234,2261.3,2261.2,0.3824]
[1725688463129,0.44237,2261.1,2260.9,0.4424]
[1725688463524,1.10583,2261.3,2260.8,0.7534]
[1725688463827,0.389,2261.2,2260.8,0.7534]
[1725688464325,0.4424,2261.0,2260.8,0.7534]
[1725688465332,0.4424,2261.0,2260.8,1.19582]
[1725688465521,0.4424,2261.0,2260.8,0.7534]
[1725688465726,0.4424,2261.0,2260.8,1.19582]
[1725688466039,3.44617561,2261.7,2260.9,4.4232]
[1725688466329,11.2626599,2262.7,2261.8,0.44223]
[1725688466330,7.43918,2262.1,2261.8,0.44223]
[1725688466630,6.70993,2262.4,2262.0,0.44218]
[1725688466822,0.44214,2262.3,2261.9,0.8081]
[1725688467026,0.44214,2262.3,2262.0,0.3929]
[1725688467630,6.70992,2262.4,2262.0,0.3929]
[1725688467824,0.44213,2262.3,2262.0,0.7619]
[1725688468023,6.70993,2262.4,2262.0,0.7619]
[1725688468331,6.2678,2262.4,2262.0,1.20408]
[1725688469128,6.2678,2262.4,2262.0,0.83509]
[1725688469325,6.70992,2262.4,2262.0,0.3929]
[1725688469725,6.70993,2262.4,2262.0,0.3929]
[1725688470739,0.44214,2262.3,2262.0,0.3929]
[1725688472831,6.2678,2262.4,2262.0,0.3929]
[1725688473028,3.2078,2262.4,2262.0,0.83508]
[1725688473230,3.2078,2262.4,2262.1,0.44217]
[1725688473622,0.44213,2262.3,2262.0,4.04288]
[1725688473936,0.44213,2262.3,2262.0,0.83508]
[1725688474124,0.44214,2262.3,2262.0,0.3929]
[1725688475532,3.2078,2262.4,2262.0,0.3929]
[1725688476031,3.2078,2262.4,2261.9,0.3659]
[1725688476230,0.44216,2262.2,2261.9,0.3659]
[1725688476418,0.44217,2262.1,2261.9,0.3659]
[1725688476828,0.44217,2262.1,2261.7,4.36087782]
[1725688476829,1.10534,2262.3,2261.7,4.36087782]
[1725688477034,0.44221,2262.0,2261.7,4.80312782]
[1725688477535,0.44221,2262.0,2261.7,1.59532782]
[1725688478633,7.4808,2262.0,2261.6,1.15307782]
[1725688478825,7.4808,2262.0,2261.5,2.12035632]
[1725688478826,0.44225,2261.7,2261.5,1.54207782]
[1725688479035,0.44225,2261.7,2261.5,0.389]
[1725688480729,0.44225,2261.7,2261.4,0.4423]
[1725688482430,0.44231,2261.4,2261.3,1.15307782]
[1725688482632,0.44232001,2261.4,2261.2,1.53847782]
[1725688482821,0.44232001,2261.4,2261.2,0.3854]
[1725688483026,1e-08,2261.4,2261.2,0.82774]
[1725688485436,1e-08,2261.4,2261.3,0.44233]
[1725688486522,1e-08,2261.4,2261.3,0.81933]
[1725688487727,1e-08,2261.4,2261.3,4.76325661]
[1725688488133,1e-08,2261.4,2261.3,7.97105424]
[1725688491041,1e-08,2261.4,2261.3,4.76325424]
[1725688491243,1e-08,2261.4,2261.3,7.97105424]
[1725688493040,1e-08,2261.4,2261.3,5.75848632]
[1725688493340,1e-08,2261.4,2261.3,7.97104594]
[1725688494845,1e-08,2261.4,2261.3,5.18330337]
[1725688495333,1e-08,2261.4,2261.3,4.02713]
[1725688495525,1e-08,2261.4,2261.3,5.18330337]
[1725688497948,1e-08,2261.4,2261.3,4.02713]
[1725688500140,1e-08,2261.4,2261.3,0.81933]
[1725688502735,1e-08,2261.4,2261.3,4.18814381]
[1725688505338,1e-08,2261.4,2261.3,4.76332676]
[1725688508633,1e-08,2261.4,2261.3,7.97112676]
[1725688508944,1e-08,2261.4,2261.3,7.39686588]
[1725688509347,1e-08,2261.4,2261.3,4.18906588]
[1725688509547,1e-08,2261.4,2261.3,4.76332676]
[1725688509749,1e-08,2261.4,2261.3,7.97112676]
[1725688509952,1e-08,2261.4,2261.3,5.18433533]
[1725688511950,1e-08,2261.4,2261.3,7.39697082]
[1725688512251,1e-08,2261.4,2261.3,6.23969477]
[1725688512440,1e-08,2261.4,2261.3,7.97580604]
[1725688513257,0.44231001,2261.4,2261.3,4.74233859]
[1725688513449,1e-08,2261.4,2261.3,4.36533859]
[1725688513651,0.37510001,2261.4,2261.3,4.36533859]
[1725688514048,0.37510001,2261.4,2261.3,4.80766859]
[1725688514245,1e-08,2261.4,2261.3,4.80766859]
[1725688514453,1e-08,2261.4,2261.3,7.02034941]
[1725688516148,1e-08,2261.4,2261.3,8.75646068]
[1725688516456,1e-08,2261.4,2261.3,12.02132209]
[1725688516763,1e-08,2261.4,2261.3,12.02123777]
[1725688517944,1e-08,2261.4,2261.3,12.59634525]
[1725688519070,1e-08,2261.4,2261.3,8.17394525]
[1725688519255,1e-08,2261.4,2261.3,7.60061366]
[1725688519454,1e-08,2261.4,2261.3,5.8627265]
[1725688520462,1e-08,2261.4,2261.3,8.17394525]
[1725688521357,1e-08,2261.4,2261.3,4.96614525]
[1725688521557,1e-08,2261.4,2261.3,9.39163453]
[1725688521760,1e-08,2261.4,2261.3,9.39162941]
[1725688522351,1e-08,2261.4,2261.3,7.08041066]
[1725688522756,1e-08,2261.4,2261.3,9.40015893]
[1725688523558,1e-08,2261.4,2261.3,7.08041066]
[1725688523758,0.44231001,2261.4,2261.3,6.63808066]
[1725688523963,1e-08,2261.4,2261.3,9.9197952]
[1725688524154,1e-08,2261.4,2261.3,7.08041066]
[1725688524553,1e-08,2261.4,2261.3,9.9197952]
[1725688525054,1e-08,2261.4,2261.3,9.40181735]
[1725688526660,1e-08,2261.4,2261.3,9.40190737]
[1725688528150,1e-08,2261.4,2261.3,7.08050068]
[1725688528350,1e-08,2261.4,2261.3,9.4022907]
[1725688528755,1e-08,2261.4,2261.3,7.08050068]
[1725688529560,1e-08,2261.4,2261.3,9.40232458]
[1725688529761,1e-08,2261.4,2261.3,7.08050068]
[1725688530259,1e-08,2261.4,2261.3,9.40230915]
[1725688530460,1e-08,2261.4,2261.3,9.40230359]
[1725688530966,1e-08,2261.4,2261.3,9.40232644]
[1725688533060,1e-08,2261.4,2261.3,9.91988522]
[1725688533462,1e-08,2261.4,2261.3,9.47755522]
[1725688533661,1e-08,2261.4,2261.3,9.91988522]
[1725688535274,0.44231001,2261.4,2261.3,9.91988522]
[1725688536360,1e-08,2261.4,2261.3,9.91988522]
[1725688536766,1e-08,2261.4,2261.3,7.70715693]
[1725688536965,1e-08,2261.4,2261.3,9.91987812]
[1725688538160,1e-08,2261.4,2261.3,11.50289358]
[1725688538363,0.44224,2261.8,2261.3,18.80360471]
[1725688538567,0.44224,2261.8,2261.7,2.32177435]
[1725688538868,0.44224,2261.8,2261.7,4.53449554]
[1725688539067,0.44224,2261.8,2261.7,5.26379554]
[1725688539472,0.44223,2261.9,2261.7,9.68857824]
[1725688539663,0.44223,2261.9,2261.8,4.33089024]
[1725688541374,0.44223,2261.9,2261.8,4.91159554]
[1725688541570,0.4422,2262.0,2261.8,9.77787226]
[1725688541766,0.4422,2262.0,2261.9,1.74061712]
[1725688541965,0.4422,2262.0,2261.9,3.95292457]
[1725688543172,1.71219,2262.1,2261.9,3.95292457]
[1725688543374,1.71219,2262.1,2262.0,1.1599591]
[1725688546074,1.71219,2262.1,2262.0,3.3721291]
[1725688546274,1.71219,2262.1,2262.0,3.95278712]
[1725688546867,0.44219,2262.1,2262.0,3.95278712]
[1725688547168,1.27,2262.2,2261.9,0.44221]
[1725688547169,1.71216,2262.2,2261.9,1.6015622]
[1725688547370,0.44217,2262.1,2261.9,1.6015622]
[1725688547870,0.44217,2262.1,2261.9,1.1593522]
[1725688548175,0.4422,2262.0,2261.8,1.5364522]
[1725688548363,0.4422,2262.0,2261.8,1.9786822]
[1725688550063,0.4422,2262.0,2261.8,0.81933]
[1725688553776,0.4422,2262.0,2261.8,0.3771]
[1725688554173,0.4422,2262.0,2261.8,0.81933]
[1725688554879,0.44221,2261.9,2261.8,0.3771]
[1725688555079,0.44225,2261.7,2261.6,2.89996932]
[1725688555286,1.71225,2261.7,2261.6,3.95323984]
[1725688555479,0.44227,2261.6,2261.5,1.15859996]
[1725688555980,4.86387,2261.6,2261.5,1.15859996]
[1725688556983,4.86387,2261.6,2261.5,3.37118454]
[1725688557284,4.86387,2261.6,2261.5,3.37117877]
[1725688557484,0.44227,2261.6,2261.5,3.37117877]
[1725688557679,4.86387,2261.6,2261.5,3.37117877]
[1725688557881,0.44227,2261.6,2261.5,3.37115403]
[1725688558186,0.44227,2261.6,2261.5,1.15859996]
[1725688558376,0.44227,2261.6,2261.5,3.37118596]
[1725688558680,4.86387,2261.6,2261.5,1.15859996]
[1725688560083,0.44229,2261.5,2261.4,2.31289996]
[1725688560978,0.44229,2261.5,2261.4,1.1543]
[1725688561183,0.44229,2261.5,2261.4,2.31289996]
[1725688561381,1.10568,2261.6,2261.4,4.96796095]
[1725688561382,0.44228,2261.6,2261.4,4.96796095]
[1725688561586,0.44228,2261.6,2261.5,1.15859996]
[1725688561886,0.44228,2261.6,2261.4,2.31289996]
[1725688562192,0.44228,2261.6,2261.5,1.15859996]
[1725688562384,0.44228,2261.6,2261.5,3.37124914]
[1725688562590,4.86388,2261.6,2261.5,5.11186626]
[1725688562890,0.44228,2261.6,2261.5,3.37124914]
[1725688563392,4.86388,2261.6,2261.5,3.37124914]
[1725688563592,0.44228,2261.6,2261.5,3.37124914]
[1725688563786,0.44228,2261.6,2261.5,5.11186626]
[1725688563986,0.44228,2261.6,2261.5,3.9532663]
[1725688564885,0.44227,2261.7,2261.5,4.3955563]
[1725688565079,0.44227,2261.7,2261.6,3.37105245]
[1725688565295,0.44227,2261.7,2261.6,3.37105785]
[1725688565589,0.44227,2261.7,2261.6,1.15855275]
[1725688566483,0.44227,2261.7,2261.6,3.371092]
[1725688566680,0.44227,2261.7,2261.6,1.15855275]
[1725688566881,3.44617561,2262.2,2262.1,0.44217]
[1725688567080,3.44617561,2262.2,2262.1,12.6073847]
[1725688567387,2.84767561,2262.8,2262.7,1.54721]
[1725688567592,1e-08,2263.1,2263.0,0.442]
[1725688567792,7.235,2263.7,2263.0,0.442]
[1725688567793,2.84767561,2263.9,2263.6,0.44187]
[1725688567989,3.2078,2264.0,2263.7,1.59908383]
[1725688568197,1.6377,2264.4,2263.8,1.15722383]
[1725688568385,1.6377,2264.4,2263.9,0.44181]
[1725688568590,1.6377,2264.4,2263.8,2.42722383]
[1725688569194,1.6377,2264.4,2263.8,1.71183]
[1725688569588,0.33166724,2264.0,2263.8,1.71183]
[1725688569994,0.33166724,2264.0,2263.8,0.44183]
[1725688570393,0.3677,2264.4,2263.8,0.44183]
[1725688572490,3.5755,2264.4,2263.8,3.64963]
[1725688573490,4.01722,2264.4,2263.8,3.64963]
[1725688574491,3.5755,2264.4,2263.9,0.44181]
[1725688574685,3.5755,2264.4,2264.0,0.4418]
[1725688574889,3.5755,2264.4,2263.9,0.44181]
[1725688575693,0.3677,2264.4,2263.9,0.44181]
[1725688576393,0.80943,2264.4,2263.8,3.64963]
[1725688576695,0.44183,2263.9,2263.3,0.81643]
[1725688576889,3.06,2264.0,2263.3,0.3745]
[1725688577085,0.44186,2263.7,2263.3,0.3745]
[1725688577288,0.44186,2263.7,2263.2,0.44196]
[1725688577491,0.44185,2263.8,2263.2,0.44196]
[1725688578091,0.44183,2263.9,2263.3,0.44194]
[1725688578297,0.3878,2263.8,2263.4,0.44192]
[1725688578498,0.82964,2263.8,2263.1,3.5868]
[1725688578997,0.82964,2263.8,2263.3,0.44193]
[1725688582788,0.82964,2263.8,2263.4,0.44192]
[1725688584091,0.3878,2263.8,2263.5,0.4419]
[1725688584498,0.82964,2263.8,2263.4,3.64971]
[1725688585894,0.82964,2263.8,2263.4,3.2078]
[1725688586494,0.44186,2263.7,2263.4,3.2078]
[1725688587096,0.3878,2263.8,2263.4,3.2078]